Workbook

Sheet ჯამი
B1: მაღაზია # 1 | C1: მაღაზია # 2 | D1: მაღაზია # 3 | E1: მაღაზია # 4 | F1: სულ | G1: დოლარებში
A2: პარფიუმერია | B2: 1938 | C2: 1363 | D2: 1807 | E2: 2012 | F2: 7120 | G2: 4169.897401
A3: ტანსაცმელი | B3: 1441 | C3: 1320 | D3: 1751 | E3: 1258 | F3: 5770 | G3: 3382.216142
A4: სურსათი | B4: 1827 | C4: 1925 | D4: 1592 | E4: 1574 | F4: 6918 | G4: 4053.556772
A5: სულ | B5: 5206 | C5: 4608 | D5: 5150 | E5: 4844 | F5: 19808 | G5: 11605.67031

Sheet იანვარი
B1: მაღაზია # 1 | C1: მაღაზია # 2 | D1: მაღაზია # 3 | E1: მაღაზია # 4 | F1: სულ | G1: დოლარებში
A2: პარფიუმერია | B2: 445 | C2: 166 | D2: 563 | E2: 765 | F2: =SUM(B2:E2) -> 1939 | G2: =F2/$C$6 -> 1140.588235
A3: ტანსაცმელი | B3: 250 | C3: 780 | D3: 367 | E3: 436 | F3: =SUM(B3:E3) -> 1833 | G3: =F3/$C$6 -> 1078.235294
A4: სურსათი | B4: 780 | C4: 596 | D4: 765 | E4: 564 | F4: =SUM(B4:E4) -> 2705 | G4: =F4/$C$6 -> 1591.176471
A5: სულ | B5: =SUM(B2:B4) -> 1475 | C5: =SUM(C2:C4) -> 1542 | D5: =SUM(D2:D4) -> 1695 | E5: =SUM(E2:E4) -> 1765 | F5: =SUM(B5:E5) -> 6477 | G5: =F5/$C$6 -> 3810
A6: დოლარის კურსი | C6: 1.7

Sheet თებერვალი
B1: მაღაზია # 1 | C1: მაღაზია # 2 | D1: მაღაზია # 3 | E1: მაღაზია # 4 | F1: სულ | G1: დოლარებში
A2: პარფიუმერია | B2: 889 | C2: 654 | D2: 574 | E2: 564 | F2: =SUM(B2:E2) -> 2681 | G2: =F2/$C$6 -> 1558.72093
A3: ტანსაცმელი | B3: 445 | C3: 276 | D3: 654 | E3: 365 | F3: =SUM(B3:E3) -> 1740 | G3: =F3/$C$6 -> 1011.627907
A4: სურსათი | B4: 543 | C4: 765 | D4: 365 | E4: 645 | F4: =SUM(B4:E4) -> 2318 | G4: =F4/$C$6 -> 1347.674419
A5: სულ | B5: =SUM(B2:B4) -> 1877 | C5: =SUM(C2:C4) -> 1695 | D5: =SUM(D2:D4) -> 1593 | E5: =SUM(E2:E4) -> 1574 | F5: =SUM(B5:E5) -> 6739 | G5: =F5/$C$6 -> 3918.023256
A6: დოლარის კურსი | C6: 1.72

Sheet მარტი
B1: მაღაზია # 1 | C1: მაღაზია # 2 | D1: მაღაზია # 3 | E1: მაღაზია # 4 | F1: სულ | G1: დოლარებში
A2: პარფიუმერია | B2: 604 | C2: 543 | D2: 670 | E2: 683 | F2: =SUM(B2:E2) -> 2500 | G2: =F2/$C$6 -> 1470.588235
A3: ტანსაცმელი | B3: 746 | C3: 264 | D3: 730 | E3: 457 | F3: =SUM(B3:E3) -> 2197 | G3: =F3/$C$6 -> 1292.352941
A4: სურსათი | B4: 504 | C4: 564 | D4: 462 | E4: 365 | F4: =SUM(B4:E4) -> 1895 | G4: =F4/$C$6 -> 1114.705882
A5: სულ | B5: =SUM(B2:B4) -> 1854 | C5: =SUM(C2:C4) -> 1371 | D5: =SUM(D2:D4) -> 1862 | E5: =SUM(E2:E4) -> 1505 | F5: =SUM(B5:E5) -> 6592 | G5: =F5/$C$6 -> 3877.647059
A6: დოლარის კურსი | C6: 1.7

Sheet სტრუქტურა
A1: იანვარი | B1: მაღაზია # 1 | C1: მაღაზია # 2 | D1: მაღაზია # 3 | E1: მაღაზია # 4 | F1: სულ | G1: დოლარში
A2: პარფიუმერია | B2: 445 | C2: 166 | D2: 563 | E2: 765 | F2: =SUM(B2:E2) -> 1939 | G2: =F2/$C$6 -> 1140.588235
A3: ტანსაცმელი | B3: 250 | C3: 780 | D3: 367 | E3: 436 | F3: =SUM(B3:E3) -> 1833 | G3: =F3/$C$6 -> 1078.235294
A4: სურსათი | B4: 780 | C4: 596 | D4: 765 | E4: 564 | F4: 2705 | G4: =F4/$C$6 -> 1591.176471
A5: სულ | B5: =SUM(B2:B4) -> 1475 | C5: =SUM(C2:C4) -> 1542 | D5: =SUM(D2:D4) -> 1695 | E5: =SUM(E2:E4) -> 1765 | F5: 6477 | G5: =F5/$C$6 -> 3810
A6: დოლარის კურსი | C6: 1.7
A8: თებერვალი
A9: პარფიუმერია | B9: 889 | C9: 654 | D9: 574 | E9: 564 | F9: 2681 | G9: =F9/$C$13 -> 1558.72093
A10: ტანსაცმელი | B10: 445 | C10: 276 | D10: 654 | E10: 365 | F10: 1740 | G10: =F10/$C$13 -> 1011.627907
A11: სურსათი | B11: 543 | C11: 765 | D11: 365 | E11: 645 | F11: 2318 | G11: =F11/$C$13 -> 1347.674419
A12: სულ | B12: =SUM(B9:B11) -> 1877 | C12: =SUM(C9:C11) -> 1695 | D12: =SUM(D9:D11) -> 1593 | E12: =SUM(E9:E11) -> 1574 | F12: 6739 | G12: =F12/$C$13 -> 3918.023256
A13: დოლარის კურსი | C13: 1.72
A15: მარტი
A16: პარფიუმერია | B16: 604 | C16: 543 | D16: 670 | E16: 683 | F16: 2500 | G16: =F16/$C$20 -> 1470.588235
A17: ტანსაცმელი | B17: 746 | C17: 264 | D17: 730 | E17: 457 | F17: 2197 | G17: =F17/$C$20 -> 1292.352941
A18: სურსათი | B18: 504 | C18: 564 | D18: 462 | E18: 365 | F18: 1895 | G18: =F18/$C$20 -> 1114.705882
A19: სულ | B19: =SUM(B16:B18) -> 1854 | C19: =SUM(C16:C18) -> 1371 | D19: =SUM(D16:D18) -> 1862 | E19: =SUM(E16:E18) -> 1505 | F19: 6592 | G19: =F19/$C$20 -> 3877.647059
A20: დოლარის კურსი | C20: 1.7
A21: კვარტალური ჯამი | B21: =B5+B12+B19 -> 5206 | C21: 4608 | D21: 5150 | E21: 4844 | F21: 19808 | G21: 11605.67031
